fUSD/lending_fUSD_20260514
["ID","MTS","AMOUNT","RATE_DAILY","PERIOD"]
[422257928,1778772642000,-2781.82699784,0.00021092,2]
[422257901,1778772642000,-420.0,0.00021,2]
[422257910,1778772642000,-306.0,0.00021,2]
[422257902,1778772642000,-1349.47752192,0.00021,2]
[422257890,1778772642000,-4955.9,0.00020548,2]
[422257900,1778772642000,-449.17,0.00020991,2]
[422257926,1778772642000,-6052.0,0.0002109,2]
[422257877,1778772642000,-4955.9,0.00020548,2]
[422257876,1778772642000,-4955.9,0.00020548,2]
[422257875,1778772642000,-4955.9,0.00020548,2]
[422257874,1778772642000,-4955.9,0.00020548,2]
[422257878,1778772642000,-4955.9,0.00020548,2]
[422257880,1778772642000,-4955.9,0.00020548,2]
[422257881,1778772642000,-4955.9,0.00020548,2]
[422257882,1778772642000,-4955.9,0.00020548,2]
[422257879,1778772642000,-4955.9,0.00020548,2]
[422257884,1778772642000,-4955.9,0.00020548,2]
[422257883,1778772642000,-4955.9,0.00020548,2]
[422257885,1778772642000,-4955.9,0.00020548,2]
[422257886,1778772642000,-4955.9,0.00020548,2]
[422257888,1778772642000,-4955.9,0.00020548,2]
[422257889,1778772642000,-4955.9,0.00020548,2]
[422257887,1778772642000,-4955.9,0.00020548,2]
[422257891,1778772642000,-4955.9,0.00020548,2]
[422257892,1778772642000,-4955.9,0.00020548,2]
[422257894,1778772642000,-4955.9,0.00020548,2]
[422257893,1778772642000,-4955.9,0.00020548,2]
[422257898,1778772642000,-21796.06,0.00020548,2]
[422257896,1778772642000,-4955.9,0.00020548,2]
[422257897,1778772642000,-4955.9,0.00020548,2]
[422257895,1778772642000,-4955.9,0.00020548,2]
[422257906,1778772642000,-15000.0,0.00021,2]
[422257930,1778772642000,-478.76,0.00021126,2]
[422257931,1778772642000,-1351.38343128,0.00021169,2]
[422257927,1778772642000,-3630.0,0.0002109,2]
[422257957,1778772642000,-2000.0,0.0002165,2]
[422257960,1778772642000,-2000.0,0.0002165,2]
[422257958,1778772642000,-2000.0,0.0002165,2]
[422257959,1778772642000,-2000.0,0.0002165,2]
[422257965,1778772642000,-150.61,0.00021674,2]
[422257967,1778772642000,-449.17,0.00021778,2]
[422257974,1778772642000,-150.0,0.00021918,2]
[422257968,1778772642000,-132827.0,0.000218,2]
[422257970,1778772642000,-500.0,0.00021906,2]
[422257966,1778772642000,-1293.02198576,0.00021689,2]
[422257972,1778772642000,-449.17,0.00021909,2]
[422257956,1778772642000,-2000.0,0.0002165,2]
[422257971,1778772642000,-2000.0,0.00021906,2]
[422257973,1778772642000,-5000.0,0.00021918,2]
[422257975,1778772642000,-159.22038882,0.0002199,2]
[422257976,1778772642000,-420.0,0.00022,2]
[422257978,1778772642000,-306.0,0.00022,2]
[422257977,1778772642000,-1491.0,0.00022,2]
[422257980,1778772642000,-3228.0,0.00022,2]
[422257984,1778772642000,-318.52,0.00022,2]
[422257982,1778772642000,-233.0,0.00022,2]
[422257981,1778772642000,-4481.0,0.00022,2]
[422257983,1778772642000,-191.0,0.00022,2]
[422257979,1778772642000,-234.0,0.00022,2]
[422257969,1778772642000,-1000.0,0.0002181,7]
[422257955,1778772642000,-2000.0,0.0002165,2]
[422257924,1778772642000,-1273.818,0.0002109,2]
[422257962,1778772642000,-2000.0,0.0002165,2]
[422257953,1778772642000,-449.17,0.00021647,2]
[422257920,1778772642000,-157.0,0.00021,2]
[422257933,1778772642000,-2402.31,0.00021273,2]
[422257932,1778772642000,-449.17,0.00021253,2]
[422257935,1778772642000,-3667.15,0.00021273,2]
[422257934,1778772642000,-1939.16,0.00021273,2]
[422257936,1778772642000,-449.17,0.00021384,2]
[422257939,1778772642000,-2000.0,0.0002144,2]
[422257937,1778772642000,-1210.47,0.000214,2]
[422257940,1778772642000,-2000.0,0.0002144,2]
[422257938,1778772642000,-478.76,0.000214,2]
[422257944,1778772642000,-2000.0,0.0002144,2]
[422257941,1778772642000,-2000.0,0.0002144,2]
[422257942,1778772642000,-2000.0,0.0002144,2]
[422257943,1778772642000,-2000.0,0.0002144,2]
[422257964,1778772642000,-2000.0,0.0002165,2]
[422257963,1778772642000,-2000.0,0.0002165,2]
[422257951,1778772642000,-3655.55539585,0.00021569,2]
[422257946,1778772642000,-2000.0,0.0002144,2]
[422257950,1778772642000,-452.05,0.00021559,2]
[422257954,1778772642000,-2000.0,0.0002165,2]
[422257947,1778772642000,-2000.0,0.0002144,2]
[422257949,1778772642000,-449.17,0.00021516,2]
[422257948,1778772642000,-2000.0,0.0002144,2]
[422257945,1778772642000,-2000.0,0.0002144,2]
[422257952,1778772642000,-2884.75459676,0.0002164,2]
[422258031,1778772643000,-154.0,0.00023,30]
[422258035,1778772643000,-154.0,0.00023,30]
[422258032,1778772643000,-154.0,0.00023,30]
[422258026,1778772643000,-166.0,0.00023,30]
[422258025,1778772643000,-191.0,0.00023,2]
[422258029,1778772643000,-154.0,0.00023,30]
[422258023,1778772643000,-233.0,0.00023,2]
[422258033,1778772643000,-154.0,0.00023,30]
[422258017,1778772643000,-3228.0,0.00023,2]
[422258036,1778772643000,-154.0,0.00023,30]
[422258020,1778772643000,-4481.0,0.00023,2]
[422258045,1778772643000,-154.0,0.00023,30]
[422258049,1778772643000,-154.0,0.00023,30]
[422258034,1778772643000,-154.0,0.00023,30]
[422258037,1778772643000,-154.0,0.00023,30]
[422258038,1778772643000,-154.0,0.00023,30]
[422258044,1778772643000,-154.0,0.00023,30]
[422258039,1778772643000,-154.0,0.00023,30]
[422258041,1778772643000,-154.0,0.00023,30]
[422258040,1778772643000,-154.0,0.00023,30]
[422258042,1778772643000,-154.0,0.00023,30]
[422258043,1778772643000,-154.0,0.00023,30]
[422258047,1778772643000,-154.0,0.00023,30]
[422258050,1778772643000,-154.0,0.00023,30]
[422258030,1778772643000,-154.0,0.00023,30]
[422258052,1778772643000,-154.0,0.00023,30]
[422258046,1778772643000,-154.0,0.00023,30]
[422258028,1778772643000,-154.0,0.00023,30]
[422258005,1778772643000,-940.0,0.00022762,7]
[422258011,1778772643000,-200.0,0.00023,30]
[422257988,1778772643000,-2000.0,0.00022103,2]
[422257990,1778772643000,-2000.0,0.00022103,2]
[422258054,1778772643000,-154.0,0.00023,30]
[422257985,1778772643000,-722.0,0.00022,2]
[422257995,1778772643000,-2236.0,0.00022353,2]
[422257993,1778772643000,-157.0,0.00022201,3]
[422257994,1778772643000,-1118.64125781,0.00022208,2]
[422257996,1778772643000,-1072.05421067,0.00022356,2]
[422257997,1778772643000,-196.30987011,0.00022407,2]
[422257999,1778772643000,-765.41,0.00022466,2]
[422257991,1778772643000,-2991.49051684,0.00022188,2]
[422257998,1778772643000,-196.30987008,0.00022407,2]
[422258016,1778772643000,-234.0,0.00023,2]
[422258000,1778772643000,-1873.56,0.00022466,2]
[422258003,1778772643000,-5530.0,0.000225,3]
[422258002,1778772643000,-3068.80912787,0.000225,2]
[422258015,1778772643000,-306.0,0.00023,2]
[422258004,1778772643000,-2998.0,0.00022762,7]
[422258007,1778772643000,-1293.02198576,0.00022831,2]
[422258006,1778772643000,-261.0,0.00022762,7]
[422258008,1778772643000,-420.0,0.00023,2]
[422258010,1778772643000,-1491.0,0.00023,2]
[422258014,1778772643000,-363.0,0.00023,30]
[422258009,1778772643000,-200.0,0.00023,30]
[422258012,1778772643000,-200.0,0.00023,30]
[422258013,1778772643000,-200.0,0.00023,30]
[422258001,1778772643000,-1501.04,0.00022466,2]
[422258051,1778772643000,-154.0,0.00023,30]
[422257986,1778772643000,-449.19406695,0.0002204,2]
[422258056,1778772643000,-154.0,0.00023,30]
[422258084,1778772643000,-2000.0,0.00023543,2]
[422258086,1778772643000,-2000.0,0.00023543,2]
[422258085,1778772643000,-2000.0,0.00023543,2]
[422258089,1778772643000,-2000.0,0.00023543,2]
[422258091,1778772643000,-1675.0,0.00023543,2]
[422258090,1778772643000,-2000.0,0.00023543,2]
[422258092,1778772643000,-150.0,0.00023671,2]
[422258093,1778772643000,-1100.0,0.00023773,2]
[422258094,1778772643000,-1100.0,0.00023773,2]
[422258101,1778772643000,-1100.0,0.00023773,2]
[422258097,1778772643000,-1100.0,0.00023773,2]
[422258104,1778772643000,-153.0,0.00023849,2]
[422258100,1778772643000,-1100.0,0.00023773,2]
[422258103,1778772643000,-654.0,0.00023773,2]
[422258098,1778772643000,-1100.0,0.00023773,2]
[422258096,1778772643000,-1100.0,0.00023773,2]
[422258099,1778772643000,-1100.0,0.00023773,2]
[422258095,1778772643000,-1100.0,0.00023773,2]
[422258105,1778772643000,-150.0,0.0002388,2]
[422258106,1778772643000,-150.0,0.0002388,2]
[422258107,1778772643000,-150.0,0.0002388,2]
[422258109,1778772643000,-150.0,0.0002388,2]
[422258108,1778772643000,-150.0,0.0002388,2]
[422258110,1778772643000,-167.0,0.0002388,2]
[422258111,1778772643000,-1293.02198576,0.00023973,2]
[422258048,1778772643000,-154.0,0.00023,30]
[422258113,1778772643000,-1491.0,0.00024,2]
[422258088,1778772643000,-2000.0,0.00023543,2]
[422258087,1778772643000,-2000.0,0.00023543,2]
[422258112,1778772643000,-420.0,0.00024,2]
[422258083,1778772643000,-2000.0,0.00023543,2]
[422258082,1778772643000,-2000.0,0.00023543,2]
[422258055,1778772643000,-154.0,0.00023,30]
[422258053,1778772643000,-154.0,0.00023,30]
[422258059,1778772643000,-159.0,0.00023,30]
[422258069,1778772643000,-159.0,0.00023,30]
[422258060,1778772643000,-159.0,0.00023,30]
[422258058,1778772643000,-159.0,0.00023,30]
[422258061,1778772643000,-159.0,0.00023,30]
[422258062,1778772643000,-159.0,0.00023,30]
[422258063,1778772643000,-159.0,0.00023,30]
[422258066,1778772643000,-159.0,0.00023,30]
[422258065,1778772643000,-159.0,0.00023,30]
[422258067,1778772643000,-159.0,0.00023,30]
[422258057,1778772643000,-162.0,0.00023,30]
[422258064,1778772643000,-159.0,0.00023,30]
[422258068,1778772643000,-159.0,0.00023,30]
[422258078,1778772643000,-5530.0,0.000232,5]
[422258077,1778772643000,-152.0,0.0002317,7]
[422258076,1778772643000,-152.0,0.0002317,7]
[422258079,1778772643000,-500.0,0.00023281,2]
[422258073,1778772643000,-159.0,0.00023,30]
[422258080,1778772643000,-3655.55539585,0.00023329,2]
[422258075,1778772643000,-722.0,0.00023,2]
[422258072,1778772643000,-159.0,0.00023,30]
[422258074,1778772643000,-159.0,0.00023,30]
[422258071,1778772643000,-159.0,0.00023,30]
[422258070,1778772643000,-159.0,0.00023,30]
[422258081,1778772643000,-1210.47,0.000234,7]
[422258156,1778772644000,-2672.46,0.0002509,2]
[422258155,1778772644000,-3655.55539585,0.00025088,2]
[422258154,1778772644000,-732.60692728,0.00025,2]
[422258150,1778772644000,-3232.19869302,0.00025,2]
[422258151,1778772644000,-4481.87215205,0.00025,2]
[422258145,1778772644000,-425.59630703,0.00025,2]
[422258149,1778772644000,-238.81095167,0.00025,2]
[422258148,1778772644000,-321.98746232,0.00025,2]
[422258153,1778772644000,-209.01962833,0.00025,2]
[422258146,1778772644000,-1505.0,0.00025,2]
[422258147,1778772644000,-7078.40236706,0.00025,2]
[422258160,1778772644000,-109670.4396959,0.00025188,2]
[422258158,1778772644000,-1351.38343128,0.0002514,2]
[422258163,1778772644000,-151.0,0.00025188,2]
[422258157,1778772644000,-1293.02198576,0.00025114,2]
[422258162,1778772644000,-151.0,0.00025188,2]
[422258159,1778772644000,-320132.7831014,0.00025188,2]
[422258165,1778772644000,-151.0,0.00025188,2]
[422258173,1778772644000,-151.0,0.00025188,2]
[422258164,1778772644000,-155.907713,0.00025188,2]
[422258166,1778772644000,-151.0,0.00025188,2]
[422258174,1778772644000,-402.640916,0.00025188,2]
[422258175,1778772644000,-402.640916,0.00025188,2]
[422258144,1778772644000,-573.0,0.00024959,2]
[422258161,1778772644000,-151.0,0.00025188,2]
[422258142,1778772644000,-2672.46,0.00024802,7]
[422258126,1778772644000,-2236.0,0.00024324,2]
[422258141,1778772644000,-2672.46,0.00024658,2]
[422258119,1778772644000,-191.0,0.00024,2]
[422258114,1778772644000,-306.0,0.00024,2]
[422258116,1778772644000,-3228.0,0.00024,2]
[422258115,1778772644000,-234.0,0.00024,2]
[422258117,1778772644000,-4481.0,0.00024,2]
[422258118,1778772644000,-233.0,0.00024,2]
[422258121,1778772644000,-1270.0,0.0002409,2]
[422258124,1778772644000,-3630.0,0.0002409,2]
[422258125,1778772644000,-1072.05421067,0.00024228,2]
[422258120,1778772644000,-722.0,0.00024,2]
[422258122,1778772644000,-1223.0,0.0002409,2]
[422258123,1778772644000,-6052.0,0.0002409,2]
[422258127,1778772644000,-157.0,0.00024383,3]
[422258128,1778772644000,-573.0,0.00024397,2]
[422258129,1778772644000,-1253.78,0.00024556,2]
[422258130,1778772644000,-1253.78,0.00024556,2]
[422258133,1778772644000,-1253.78,0.00024558,2]
[422258131,1778772644000,-1253.78,0.00024558,2]
[422258139,1778772644000,-1065.33,0.00024658,2]
[422258140,1778772644000,-1000.0,0.00024658,2]
[422258135,1778772644000,-1253.78,0.00024558,2]
[422258136,1778772644000,-1253.79,0.0002456,2]
[422258138,1778772644000,-1253.78,0.0002456,2]
[422258137,1778772644000,-1253.78,0.0002456,2]
[422258143,1778772644000,-2672.46,0.00024946,2]
[422258152,1778772644000,-238.12944582,0.00025,2]
[422258167,1778772644000,-151.0,0.00025188,2]
[422258169,1778772644000,-225.842796,0.00025188,2]
[422258172,1778772644000,-402.640916,0.00025188,2]
[422258205,1778772644000,-2672.46,0.00025378,7]
[422258203,1778772644000,-2672.46,0.00025234,7]
[422258204,1778772644000,-7078.40236706,0.000253,2]
[422258207,1778772644000,-573.0,0.00025521,3]
[422258206,1778772644000,-7078.40236706,0.000255,2]
[422258208,1778772644000,-2672.46,0.00025523,2]
[422258209,1778772644000,-150.0,0.00025565,2]
[422258211,1778772644000,-2672.46,0.00025667,7]
[422258221,1778772644000,-214.95940296,0.00026,7]
[422258222,1778772644000,-208.3309892,0.00026,7]
[422258210,1778772644000,-1210.47,0.000256,7]
[422258212,1778772644000,-558.0,0.00025678,2]
[422258213,1778772644000,-2402.31,0.00025786,2]
[422258217,1778772644000,-2672.46,0.00025811,2]
[422258219,1778772644000,-452.05,0.00025998,2]
[422258220,1778772644000,-7078.40236706,0.00026,2]
[422258214,1778772644000,-1939.16,0.00025786,2]
[422258216,1778772644000,-7078.40236706,0.000258,2]
[422258218,1778772644000,-689.0,0.00025964,2]
[422258224,1778772644000,-1833.01,0.00026027,2]
[422258223,1778772644000,-532.71,0.00026027,2]
[422258225,1778772644000,-1712.71,0.00026027,2]
[422258226,1778772644000,-531.88,0.00026027,2]
[422258227,1778772644000,-1827.46,0.00026027,2]
[422258170,1778772644000,-402.640916,0.00025188,2]
[422258202,1778772644000,-318.52,0.00025193,7]
[422258200,1778772644000,-892.364592,0.00025188,2]
[422258215,1778772644000,-3667.15,0.00025786,2]
[422258199,1778772644000,-892.364592,0.00025188,2]
[422258201,1778772644000,-892.364592,0.00025188,2]
[422258171,1778772644000,-151.0,0.00025188,2]
[422258176,1778772644000,-151.0,0.00025188,2]
[422258180,1778772644000,-151.0,0.00025188,2]
[422258181,1778772644000,-151.0,0.00025188,2]
[422258185,1778772644000,-591.875821,0.00025188,2]
[422258184,1778772644000,-591.875821,0.00025188,2]
[422258177,1778772644000,-151.0,0.00025188,2]
[422258178,1778772644000,-151.0,0.00025188,2]
[422258187,1778772644000,-425.186581,0.00025188,2]
[422258183,1778772644000,-591.875821,0.00025188,2]
[422258179,1778772644000,-151.0,0.00025188,2]
[422258182,1778772644000,-591.875821,0.00025188,2]
[422258168,1778772644000,-151.0,0.00025188,2]
[422258198,1778772644000,-892.364592,0.00025188,2]
[422258188,1778772644000,-425.186581,0.00025188,2]
[422258189,1778772644000,-425.186581,0.00025188,2]
[422258190,1778772644000,-151.0,0.00025188,2]
[422258191,1778772644000,-151.0,0.00025188,2]
[422258192,1778772644000,-1062.333433,0.00025188,2]
[422258193,1778772644000,-1062.333433,0.00025188,2]
[422258197,1778772644000,-151.0,0.00025188,2]
[422258186,1778772644000,-425.186581,0.00025188,2]
[422258195,1778772644000,-1062.333433,0.00025188,2]
[422258196,1778772644000,-151.0,0.00025188,2]
[422258194,1778772644000,-1062.333433,0.00025188,2]
[422258263,1778772645000,-531.88,0.00026171,30]
[422258255,1778772645000,-1712.71,0.00026142,7]
[422258268,1778772645000,-1833.01,0.000262,2]
[422258266,1778772645000,-845.6,0.00026171,7]
[422258262,1778772645000,-1712.71,0.00026171,7]
[422258252,1778772645000,-845.6,0.00026113,2]
[422258261,1778772645000,-1833.01,0.00026171,7]
[422258259,1778772645000,-845.6,0.00026142,7]
[422258260,1778772645000,-532.71,0.00026171,30]
[422258257,1778772645000,-1827.46,0.00026142,7]
[422258267,1778772645000,-532.71,0.000262,2]
[422258264,1778772645000,-1827.46,0.00026171,7]
[422258265,1778772645000,-1708.98,0.00026171,7]
[422258271,1778772645000,-1827.46,0.000262,2]
[422258270,1778772645000,-531.88,0.000262,2]
[422258272,1778772645000,-1708.98,0.000262,2]
[422258274,1778772645000,-532.71,0.00026229,7]
[422258273,1778772645000,-845.6,0.000262,2]
[422258277,1778772645000,-531.88,0.00026229,7]
[422258275,1778772645000,-1833.01,0.00026229,7]
[422258281,1778772645000,-800.0,0.00026243,2]
[422258280,1778772645000,-845.6,0.00026229,7]
[422258276,1778772645000,-1712.71,0.00026229,7]
[422258282,1778772645000,-1293.02198576,0.00026256,2]
[422258278,1778772645000,-1827.46,0.00026229,7]
[422258269,1778772645000,-1712.71,0.000262,2]
[422258256,1778772645000,-531.88,0.00026142,7]
[422258279,1778772645000,-1708.98,0.00026229,7]
[422258250,1778772645000,-1827.46,0.00026113,2]
[422258234,1778772645000,-1827.46,0.00026055,7]
[422258235,1778772645000,-1708.98,0.00026055,7]
[422258231,1778772645000,-1833.01,0.00026055,7]
[422258232,1778772645000,-1712.71,0.00026055,7]
[422258228,1778772645000,-1708.98,0.00026027,2]
[422258230,1778772645000,-532.71,0.00026055,7]
[422258229,1778772645000,-845.6,0.00026027,2]
[422258233,1778772645000,-531.88,0.00026055,7]
[422258237,1778772645000,-573.0,0.00026082,3]
[422258236,1778772645000,-845.6,0.00026055,7]
[422258239,1778772645000,-1833.01,0.00026084,2]
[422258244,1778772645000,-845.6,0.00026084,2]
[422258240,1778772645000,-1712.71,0.00026084,2]
[422258241,1778772645000,-531.88,0.00026084,30]
[422258242,1778772645000,-1827.46,0.00026084,2]
[422258246,1778772645000,-532.71,0.00026113,2]
[422258243,1778772645000,-1708.98,0.00026084,2]
[422258245,1778772645000,-1072.05421067,0.000261,2]
[422258238,1778772645000,-532.71,0.00026084,30]
[422258247,1778772645000,-1833.01,0.00026113,2]
[422258248,1778772645000,-1712.71,0.00026113,2]
[422258258,1778772645000,-1708.98,0.00026142,7]
[422258251,1778772645000,-1708.98,0.00026113,2]
[422258249,1778772645000,-531.88,0.00026113,2]
[422258254,1778772645000,-1833.01,0.00026142,7]
[422258253,1778772645000,-532.71,0.00026142,7]
[422258283,1778772645000,-532.71,0.00026257,30]
[422258341,1778772645000,-845.6,0.00026431,2]
[422258295,1778772645000,-1827.46,0.00026286,2]
[422258316,1778772645000,-532.71,0.00026373,2]
[422258311,1778772645000,-1712.71,0.00026344,7]
[422258314,1778772645000,-1708.98,0.00026344,7]
[422258313,1778772645000,-1827.46,0.00026344,7]
[422258319,1778772645000,-1712.71,0.00026373,2]
[422258321,1778772645000,-1827.46,0.00026373,2]
[422258330,1778772645000,-531.88,0.00026402,7]
[422258326,1778772645000,-1833.01,0.00026402,7]
[422258328,1778772645000,-1781.64,0.00026402,7]
[422258324,1778772645000,-200.0,0.0002639,20]
[422258320,1778772645000,-531.88,0.00026373,2]
[422258323,1778772645000,-845.6,0.00026373,2]
[422258322,1778772645000,-1708.98,0.00026373,2]
[422258325,1778772645000,-532.71,0.00026402,7]
[422258329,1778772645000,-1712.71,0.00026402,7]
[422258332,1778772645000,-1708.98,0.00026402,7]
[422258338,1778772645000,-531.88,0.00026431,30]
[422258331,1778772645000,-1827.46,0.00026402,7]
[422258333,1778772645000,-845.6,0.00026402,7]
[422258334,1778772645000,-532.71,0.00026431,30]
[422258337,1778772645000,-1712.71,0.00026431,2]
[422258336,1778772645000,-1781.64,0.00026431,2]
[422258335,1778772645000,-1833.01,0.00026431,2]
[422258340,1778772645000,-1708.98,0.00026431,2]
[422258339,1778772645000,-1827.46,0.00026431,2]
[422258317,1778772645000,-1833.01,0.00026373,2]
[422258315,1778772645000,-845.6,0.00026344,7]
[422258284,1778772645000,-1833.01,0.00026257,2]
[422258310,1778772645000,-1781.64,0.00026344,7]
[422258312,1778772645000,-531.88,0.00026344,30]
[422258294,1778772645000,-531.88,0.00026286,2]
[422258285,1778772645000,-1712.71,0.00026257,2]
[422258286,1778772645000,-531.88,0.00026257,30]
[422258293,1778772645000,-1712.71,0.00026286,2]
[422258288,1778772645000,-1708.98,0.00026257,2]
[422258291,1778772645000,-1833.01,0.00026286,2]
[422258289,1778772645000,-845.6,0.00026257,2]
[422258287,1778772645000,-1827.46,0.00026257,2]
[422258290,1778772645000,-532.71,0.00026286,2]
[422258297,1778772645000,-845.6,0.00026286,2]
[422258296,1778772645000,-1708.98,0.00026286,2]
[422258292,1778772645000,-1781.64,0.00026286,2]
[422258300,1778772645000,-532.71,0.00026315,7]
[422258299,1778772645000,-7078.40236706,0.000263,2]
[422258307,1778772645000,-845.6,0.00026315,7]
[422258318,1778772645000,-1781.64,0.00026373,2]
[422258308,1778772645000,-532.71,0.00026344,30]
[422258306,1778772645000,-1708.98,0.00026315,7]
[422258304,1778772645000,-531.88,0.00026315,7]
[422258309,1778772645000,-1833.01,0.00026344,7]
[422258302,1778772645000,-1781.64,0.00026315,7]
[422258303,1778772645000,-1712.71,0.00026315,7]
[422258305,1778772645000,-1827.46,0.00026315,7]
[422258301,1778772645000,-1833.01,0.00026315,7]
[422258298,1778772645000,-2236.0,0.00026296,2]
[422258387,1778772646000,-531.93,0.00026575,7]
[422258389,1778772646000,-1709.06,0.00026575,7]
[422258383,1778772646000,-532.8,0.00026575,7]
[422258385,1778772646000,-1781.66,0.00026575,7]
[422258386,1778772646000,-1712.83,0.00026575,7]
[422258388,1778772646000,-1827.65,0.00026575,7]
[422258382,1778772646000,-157.0,0.00026566,3]
[422258381,1778772646000,-845.6,0.00026546,2]
[422258375,1778772646000,-1833.01,0.00026546,2]
[422258367,1778772646000,-1708.98,0.00026517,7]
[422258373,1778772646000,-310.1967143,0.00026527,2]
[422258384,1778772646000,-1833.17,0.00026575,7]
[422258390,1778772646000,-845.79,0.00026575,7]
[422258408,1778772646000,-6052.0,0.0002709,2]
[422258394,1778772646000,-202.01375838,0.0002679,7]
[422258395,1778772646000,-7078.40236706,0.000268,2]
[422258396,1778772646000,-150.0,0.00026849,2]
[422258397,1778772646000,-313.76318988,0.00026894,2]
[422258402,1778772646000,-214.95940296,0.00027,30]
[422258399,1778772646000,-500.0,0.00026957,2]
[422258401,1778772646000,-208.3309892,0.00027,30]
[422258403,1778772646000,-1531.0,0.00027,30]
[422258393,1778772646000,-1231.0,0.00026777,7]
[422258400,1778772646000,-2000.0,0.00026957,2]
[422258398,1778772646000,-272.0,0.00026894,2]
[422258372,1778772646000,-1001.0,0.00026524,7]
[422258392,1778772646000,-573.0,0.00026644,4]
[422258374,1778772646000,-532.71,0.00026546,2]
[422258359,1778772646000,-532.71,0.00026517,30]
[422258378,1778772646000,-531.88,0.00026546,2]
[422258350,1778772646000,-532.71,0.00026488,7]
[422258346,1778772646000,-531.88,0.00026459,2]
[422258344,1778772646000,-1781.64,0.00026459,2]
[422258343,1778772646000,-1833.01,0.00026459,2]
[422258347,1778772646000,-1827.46,0.00026459,2]
[422258345,1778772646000,-1712.71,0.00026459,2]
[422258348,1778772646000,-1708.98,0.00026459,2]
[422258349,1778772646000,-845.6,0.00026459,2]
[422258342,1778772646000,-532.71,0.00026459,2]
[422258352,1778772646000,-1781.64,0.00026488,7]
[422258364,1778772646000,-531.88,0.00026517,30]
[422258362,1778772646000,-1712.71,0.00026517,7]
[422258351,1778772646000,-1833.01,0.00026488,7]
[422258353,1778772646000,-1712.71,0.00026488,7]
[422258354,1778772646000,-531.88,0.00026488,7]
[422258410,1778772646000,-7078.40236706,0.000271,2]
[422258356,1778772646000,-1708.98,0.00026488,7]
[422258358,1778772646000,-7078.40236706,0.000265,2]
[422258355,1778772646000,-1827.46,0.00026488,7]
[422258357,1778772646000,-845.6,0.00026488,7]
[422258360,1778772646000,-1833.01,0.00026517,7]
[422258361,1778772646000,-1781.64,0.00026517,7]
[422258365,1778772646000,-1827.46,0.00026517,7]
[422258376,1778772646000,-1781.64,0.00026546,2]
[422258377,1778772646000,-1712.71,0.00026546,2]
[422258369,1778772646000,-845.6,0.00026517,7]
[422258380,1778772646000,-1708.98,0.00026546,2]
[422258379,1778772646000,-1827.46,0.00026546,2]
[422258412,1778772646000,-573.0,0.00027205,4]
[422258391,1778772646000,-200.0,0.0002659,20]
[422258409,1778772646000,-3630.0,0.0002709,2]
[422258436,1778772646000,-413.199868,0.00027397,2]
[422258438,1778772646000,-413.199868,0.00027397,2]
[422258442,1778772646000,-920.886244,0.00027397,2]
[422258444,1778772646000,-1565.602577,0.00027397,2]
[422258446,1778772646000,-1565.602577,0.00027397,2]
[422258445,1778772646000,-1565.602577,0.00027397,2]